[Event "*** SCC Grand Prix: Titled Tuesday Blitz"]
[Site "Chess.com"]
[Date "2020.08.25"]
[Round "4"]
[White "Spalir"]
[Black "Roza_Idrisova"]
[Result "1-0"]
[WhiteElo "2579"]
[BlackElo "2201"]
[TimeControl "180+1"]
[EndTime "10:39:29 PDT"]
[Termination "Spalir won by resignation"]

1. d4 {[%clk 0:03:00.9]} 1... d5 {[%clk 0:02:59.8]} 2. Nf3 {[%clk 0:03:01]} 2...
c6 {[%clk 0:02:59.3]} 3. c4 {[%clk 0:03:01.3]} 3... Nf6 {[%clk 0:02:58.5]} 4.
Nc3 {[%clk 0:03:01.9]} 4... a6 {[%clk 0:02:56.4]} 5. Bf4 {[%clk 0:03:00.9]} 5...
b5 {[%clk 0:02:55.7]} 6. cxd5 {[%clk 0:02:59.7]} 6... cxd5 {[%clk 0:02:55.5]} 7.
e3 {[%clk 0:02:59.9]} 7... e6 {[%clk 0:02:55.4]} 8. a4 {[%clk 0:02:58.9]} 8...
b4 {[%clk 0:02:55]} 9. Nb1 {[%clk 0:02:59.5]} 9... Bd6 {[%clk 0:02:52.6]} 10.
Bg5 {[%clk 0:02:57.4]} 10... Bb7 {[%clk 0:02:49.3]} 11. Bd3 {[%clk 0:02:57.2]}
11... Nbd7 {[%clk 0:02:49]} 12. Nbd2 {[%clk 0:02:57.2]} 12... Qb6 {[%clk
0:02:48.5]} 13. a5 {[%clk 0:02:55.3]} 13... Qa7 {[%clk 0:02:43.3]} 14. Qa4
{[%clk 0:02:48.4]} 14... O-O {[%clk 0:02:41.4]} 15. O-O {[%clk 0:02:48]} 15...
Rac8 {[%clk 0:02:40.2]} 16. Rfc1 {[%clk 0:02:47]} 16... h6 {[%clk 0:02:38.3]}
17. Bh4 {[%clk 0:02:46.4]} 17... Qa8 {[%clk 0:02:33.7]} 18. Bxf6 {[%clk
0:02:19.7]} 18... Nxf6 {[%clk 0:02:32.2]} 19. Ne5 {[%clk 0:02:20.4]} 19... Bxe5
{[%clk 0:02:23.9]} 20. dxe5 {[%clk 0:02:21.3]} 20... Ng4 {[%clk 0:02:20.7]} 21.
Nf3 {[%clk 0:02:14.9]} 21... Qb8 {[%clk 0:02:11.7]} 22. Qxb4 {[%clk 0:02:12.8]}
22... h5 {[%clk 0:01:52.9]} 23. h3 {[%clk 0:02:09]} 23... Nh6 {[%clk 0:01:52.3]}
24. Qh4 {[%clk 0:01:59.9]} 24... g6 {[%clk 0:01:47.1]} 25. Qf6 {[%clk
0:01:54.1]} 25... Nf5 {[%clk 0:01:25.8]} 26. Bxf5 {[%clk 0:01:41.1]} 26... exf5
{[%clk 0:01:25.6]} 27. e6 {[%clk 0:01:41.4]} 27... Kh7 {[%clk 0:01:12.8]} 28.
Ng5+ {[%clk 0:01:39.7]} 28... Kh6 {[%clk 0:01:10.7]} 29. Nxf7+ {[%clk
0:01:39.4]} 29... Kh7 {[%clk 0:01:09.4]} 30. e7 {[%clk 0:01:37]} 30... Rfe8
{[%clk 0:00:58.8]} 31. Ng5+ {[%clk 0:01:35.6]} 31... Kh6 {[%clk 0:00:57.5]} 32.
Ne6 {[%clk 0:01:35.6]} 32... Rg8 {[%clk 0:00:54.7]} 33. Nd8 {[%clk 0:01:07.2]}
33... Rc7 {[%clk 0:00:41]} 34. Qf8+ {[%clk 0:01:01.4]} 34... Kh7 {[%clk
0:00:35.2]} 35. Qxg8+ {[%clk 0:01:00]} 1-0

[Event "*** SCC Grand Prix: Titled Tuesday Blitz"]
[Site "Chess.com"]
[Date "2020.08.25"]
[Round "4"]
[White "rududuyk"]
[Black "Fandorine"]
[Result "0-1"]
[WhiteElo "2157"]
[BlackElo "2912"]
[TimeControl "180+1"]
[EndTime "10:39:31 PDT"]
[Termination "Fandorine won on time"]

1. e4 {[%clk 0:03:00.9]} 1... c5 {[%clk 0:02:58.7]} 2. Nc3 {[%clk 0:02:58.1]}
2... d6 {[%clk 0:02:57.7]} 3. f4 {[%clk 0:02:57.2]} 3... Nc6 {[%clk 0:02:57.6]}
4. Nf3 {[%clk 0:02:57.4]} 4... g6 {[%clk 0:02:57.6]} 5. Bc4 {[%clk 0:02:57.7]}
5... Bg7 {[%clk 0:02:57.8]} 6. O-O {[%clk 0:02:57.4]} 6... e6 {[%clk 0:02:58]}
7. d3 {[%clk 0:02:57.3]} 7... Nge7 {[%clk 0:02:57.1]} 8. Qe1 {[%clk 0:02:56.1]}
8... O-O {[%clk 0:02:57.1]} 9. f5 {[%clk 0:02:55.7]} 9... d5 {[%clk 0:02:39.8]}
10. f6 {[%clk 0:02:34.8]} 10... Bxf6 {[%clk 0:02:38.4]} 11. Bb3 {[%clk
0:02:34.3]} 11... c4 {[%clk 0:02:16.2]} 12. dxc4 {[%clk 0:02:18.7]} 12... d4
{[%clk 0:02:16.7]} 13. Ne2 {[%clk 0:02:07.1]} 13... e5 {[%clk 0:02:10.7]} 14. c3
{[%clk 0:01:59.2]} 14... Bg7 {[%clk 0:02:04.8]} 15. Qh4 {[%clk 0:01:43.6]} 15...
d3 {[%clk 0:01:33.1]} 16. Ng3 {[%clk 0:01:27.2]} 16... f6 {[%clk 0:01:33.2]} 17.
c5+ {[%clk 0:01:11.5]} 17... Kh8 {[%clk 0:01:33.3]} 18. Bh6 {[%clk 0:01:07.2]}
18... Na5 {[%clk 0:01:28.4]} 19. Rad1 {[%clk 0:00:27.7]} 19... Nxb3 {[%clk
0:01:27.9]} 20. axb3 {[%clk 0:00:28.6]} 20... Be6 {[%clk 0:01:28.1]} 21. Bxg7+
{[%clk 0:00:16.4]} 21... Kxg7 {[%clk 0:01:29]} 22. c4 {[%clk 0:00:15]} 22... Nc6
{[%clk 0:01:25.8]} 23. Rd2 {[%clk 0:00:07]} 23... a5 {[%clk 0:01:22.3]} 24. Rfd1
{[%clk 0:00:06.5]} 24... Qe7 {[%clk 0:01:22.9]} 25. Rxd3 {[%clk 0:00:06.3]}
25... Qxc5+ {[%clk 0:01:23]} 26. Kh1 {[%clk 0:00:04.9]} 26... Rad8 {[%clk
0:01:22.5]} 27. Rxd8 {[%clk 0:00:04.1]} 27... Rxd8 {[%clk 0:01:23.4]} 28. Rxd8
{[%clk 0:00:03.7]} 28... Nxd8 {[%clk 0:01:24.3]} 29. Ne2 {[%clk 0:00:02.5]}
29... Qe3 {[%clk 0:01:20.3]} 30. Qe1 {[%clk 0:00:01.6]} 30... Qxe4 {[%clk
0:01:17.1]} 0-1

[Event "*** SCC Grand Prix: Titled Tuesday Blitz"]
[Site "Chess.com"]
[Date "2020.08.25"]
[Round "4"]
[White "Haykoooo0o"]
[Black "korkmaz16"]
[Result "1-0"]
[WhiteElo "2521"]
[BlackElo "2299"]
[TimeControl "180+1"]
[EndTime "10:39:40 PDT"]
[Termination "Haykoooo0o won by resignation"]

1. d4 {[%clk 0:03:00.9]} 1... d5 {[%clk 0:02:56.9]} 2. Nf3 {[%clk 0:03:00.4]}
2... Nf6 {[%clk 0:02:56.3]} 3. e3 {[%clk 0:03:00.2]} 3... c5 {[%clk 0:02:55.9]}
4. Bd3 {[%clk 0:03:00.5]} 4... Nc6 {[%clk 0:02:55.8]} 5. c3 {[%clk 0:03:00.7]}
5... Bg4 {[%clk 0:02:55]} 6. Nbd2 {[%clk 0:03:01.3]} 6... e6 {[%clk 0:02:54.7]}
7. Qa4 {[%clk 0:03:01.4]} 7... Bd6 {[%clk 0:02:52.9]} 8. Ne5 {[%clk 0:03:01.7]}
8... c4 {[%clk 0:01:47.8]} 9. Nxc6 {[%clk 0:02:55]} 9... bxc6 {[%clk 0:01:47.8]}
10. Qxc6+ {[%clk 0:02:53.4]} 10... Qd7 {[%clk 0:01:42.3]} 11. Qxd7+ {[%clk
0:02:52.5]} 11... Kxd7 {[%clk 0:01:23.7]} 12. Bc2 {[%clk 0:02:51]} 12... Rab8
{[%clk 0:01:16.9]} 13. e4 {[%clk 0:02:50.2]} 13... Bf4 {[%clk 0:01:14.4]} 14. e5
{[%clk 0:02:44.2]} 14... Bxd2+ {[%clk 0:01:12.7]} 15. Kxd2 {[%clk 0:02:42.5]}
15... Ne4+ {[%clk 0:01:10.3]} 16. Ke3 {[%clk 0:02:31.6]} 16... Bf5 {[%clk
0:00:58.3]} 17. f3 {[%clk 0:02:24.2]} 17... Nd6 {[%clk 0:00:42.5]} 18. Ba4+
{[%clk 0:02:13.8]} 18... Nb5 {[%clk 0:00:42.6]} 19. h4 {[%clk 0:02:08.6]} 19...
h5 {[%clk 0:00:41.7]} 20. b3 {[%clk 0:02:01]} 20... Rhc8 {[%clk 0:00:37.4]} 21.
Bxb5+ {[%clk 0:01:55.2]} 21... Rxb5 {[%clk 0:00:36.6]} 22. b4 {[%clk 0:01:55.4]}
22... f6 {[%clk 0:00:28.9]} 23. a4 {[%clk 0:01:47.7]} 23... Rbb8 {[%clk
0:00:26]} 24. a5 {[%clk 0:01:36.3]} 24... a6 {[%clk 0:00:25.8]} 25. Ba3 {[%clk
0:01:33.5]} 25... Kc6 {[%clk 0:00:25.4]} 26. Rhg1 {[%clk 0:01:27.1]} 26... Kb5
{[%clk 0:00:22.6]} 27. Bb2 {[%clk 0:01:25.1]} 27... fxe5 {[%clk 0:00:19.6]} 28.
dxe5 {[%clk 0:01:26]} 28... d4+ {[%clk 0:00:19.1]} 29. Kxd4 {[%clk 0:01:22.2]}
29... Rd8+ {[%clk 0:00:18.8]} 30. Ke3 {[%clk 0:01:22.1]} 30... Rd3+ {[%clk
0:00:19.3]} 31. Ke2 {[%clk 0:01:22.1]} 31... Rbd8 {[%clk 0:00:19.4]} 32. Rad1
{[%clk 0:01:21]} 32... R8d5 {[%clk 0:00:19.7]} 33. Rxd3 {[%clk 0:01:14.1]} 33...
cxd3+ {[%clk 0:00:18.1]} 34. Kd2 {[%clk 0:01:13]} 34... Rxe5 {[%clk 0:00:18.6]}
35. c4+ {[%clk 0:01:12.3]} 35... Kxc4 {[%clk 0:00:17.2]} 36. Bxe5 {[%clk
0:01:12.2]} 36... Kd5 {[%clk 0:00:17.3]} 37. Bxg7 {[%clk 0:01:12]} 1-0

[Event "*** SCC Grand Prix: Titled Tuesday Blitz"]
[Site "Chess.com"]
[Date "2020.08.25"]
[Round "4"]
[White "pastouche06"]
[Black "Quiet_Desperation"]
[Result "1-0"]
[WhiteElo "2514"]
[BlackElo "2292"]
[TimeControl "180+1"]
[EndTime "10:39:40 PDT"]
[Termination "pastouche06 won by resignation"]

1. d4 {[%clk 0:03:00.9]} 1... d5 {[%clk 0:02:59.5]} 2. c4 {[%clk 0:03:00.7]}
2... c6 {[%clk 0:02:58.8]} 3. Nf3 {[%clk 0:03:00]} 3... Nf6 {[%clk 0:02:57.9]}
4. Qc2 {[%clk 0:02:59.7]} 4... dxc4 {[%clk 0:02:56]} 5. e4 {[%clk 0:02:59.1]}
5... g6 {[%clk 0:02:55.5]} 6. Bxc4 {[%clk 0:02:55.5]} 6... Bg7 {[%clk
0:02:55.4]} 7. O-O {[%clk 0:02:53.8]} 7... O-O {[%clk 0:02:54.1]} 8. h3 {[%clk
0:02:49.8]} 8... Nbd7 {[%clk 0:02:53.7]} 9. Rd1 {[%clk 0:02:46.4]} 9... b5
{[%clk 0:02:47.1]} 10. Bf1 {[%clk 0:02:44.2]} 10... Bb7 {[%clk 0:02:47.1]} 11.
Nbd2 {[%clk 0:02:38.6]} 11... a6 {[%clk 0:02:46.9]} 12. e5 {[%clk 0:02:31]}
12... Nd5 {[%clk 0:02:45.6]} 13. Ne4 {[%clk 0:02:31.7]} 13... Rc8 {[%clk
0:02:38]} 14. a3 {[%clk 0:02:16.4]} 14... Qb6 {[%clk 0:02:16.5]} 15. b4 {[%clk
0:02:13.9]} 15... a5 {[%clk 0:02:10.9]} 16. Rb1 {[%clk 0:01:55.7]} 16... axb4
{[%clk 0:02:08.4]} 17. axb4 {[%clk 0:01:56.6]} 17... h6 {[%clk 0:02:05.7]} 18.
e6 {[%clk 0:01:55]} 18... fxe6 {[%clk 0:02:03.7]} 19. Nc5 {[%clk 0:01:55.1]}
19... Nxc5 {[%clk 0:02:03]} 20. dxc5 {[%clk 0:01:52.9]} 20... Qd8 {[%clk
0:01:57.1]} 21. Qxg6 {[%clk 0:01:51.5]} 21... Rf6 {[%clk 0:01:56.4]} 22. Qg4
{[%clk 0:01:41.9]} 22... Qf8 {[%clk 0:01:50.5]} 23. Re1 {[%clk 0:01:04.6]} 23...
e5 {[%clk 0:01:34.9]} 24. Nxe5 {[%clk 0:00:45.1]} 24... Rxf2 {[%clk 0:01:29.6]}
25. Bxh6 {[%clk 0:00:41.4]} 25... Rf4 {[%clk 0:01:19.8]} 26. Bxf4 {[%clk
0:00:38.4]} 26... Nxf4 {[%clk 0:01:16.2]} 27. Ng6 {[%clk 0:00:31.7]} 27... Nxg6
{[%clk 0:01:13.3]} 28. Qxg6 {[%clk 0:00:32.6]} 28... Rd8 {[%clk 0:01:05.1]} 29.
Bd3 {[%clk 0:00:28.5]} 29... Rxd3 {[%clk 0:00:49.1]} 30. Qxd3 {[%clk 0:00:28]}
30... Qf4 {[%clk 0:00:44.7]} 31. Qe4 {[%clk 0:00:26.5]} 31... Bd4+ {[%clk
0:00:43.1]} 32. Kh1 {[%clk 0:00:26]} 1-0

[Event "*** SCC Grand Prix: Titled Tuesday Blitz"]
[Site "Chess.com"]
[Date "2020.08.25"]
[Round "4"]
[White "Bulldog167"]
[Black "Miss_JJ20"]
[Result "1-0"]
[WhiteElo "2684"]
[BlackElo "2416"]
[TimeControl "180+1"]
[EndTime "10:39:43 PDT"]
[Termination "Bulldog167 won by resignation"]

1. e4 {[%clk 0:03:00.9]} 1... e6 {[%clk 0:02:59.6]} 2. d4 {[%clk 0:03:00.7]}
2... d5 {[%clk 0:02:58.7]} 3. Nd2 {[%clk 0:03:00.6]} 3... Nf6 {[%clk 0:02:58.2]}
4. e5 {[%clk 0:02:59.6]} 4... Nfd7 {[%clk 0:02:58.9]} 5. c3 {[%clk 0:02:57.4]}
5... c5 {[%clk 0:02:59.1]} 6. f4 {[%clk 0:02:54.5]} 6... Nc6 {[%clk 0:02:57.9]}
7. Ngf3 {[%clk 0:02:54.7]} 7... Qb6 {[%clk 0:02:48.8]} 8. Nb3 {[%clk 0:02:45.5]}
8... Be7 {[%clk 0:02:42.1]} 9. Be2 {[%clk 0:02:31]} 9... a5 {[%clk 0:02:31]} 10.
a4 {[%clk 0:02:22.3]} 10... f6 {[%clk 0:02:26]} 11. exf6 {[%clk 0:02:03.3]}
11... Bxf6 {[%clk 0:02:08.5]} 12. O-O {[%clk 0:02:03.4]} 12... O-O {[%clk
0:02:00.9]} 13. Kh1 {[%clk 0:02:03.6]} 13... cxd4 {[%clk 0:01:41.8]} 14. cxd4
{[%clk 0:02:03]} 14... Qd8 {[%clk 0:01:32.4]} 15. Be3 {[%clk 0:01:54.7]} 15...
b6 {[%clk 0:01:15.8]} 16. Ne5 {[%clk 0:01:54]} 16... Bb7 {[%clk 0:01:15.3]} 17.
Bd3 {[%clk 0:01:47.6]} 17... g6 {[%clk 0:01:05.8]} 18. Qg4 {[%clk 0:01:45.7]}
18... Qe7 {[%clk 0:00:49.6]} 19. Rac1 {[%clk 0:01:33.7]} 19... Rac8 {[%clk
0:00:28.9]} 20. Nd2 {[%clk 0:01:19.7]} 20... Nb4 {[%clk 0:00:17]} 21. Bb5 {[%clk
0:01:18.8]} 21... Nxe5 {[%clk 0:00:13.1]} 22. fxe5 {[%clk 0:01:19.2]} 22... Bg7
{[%clk 0:00:13]} 23. Bg5 {[%clk 0:01:16.5]} 23... Rxc1 {[%clk 0:00:10]} 24. Bxe7
{[%clk 0:01:15.4]} 24... Rfxf1+ {[%clk 0:00:09.3]} 25. Nxf1 {[%clk 0:01:15.3]}
25... Ba6 {[%clk 0:00:08.8]} 26. Qxe6+ {[%clk 0:01:15.1]} 26... Kh8 {[%clk
0:00:09.2]} 27. Bf6 {[%clk 0:01:06]} 27... Bxb5 {[%clk 0:00:08.6]} 28. Bxg7+
{[%clk 0:01:03.2]} 28... Kxg7 {[%clk 0:00:09.5]} 29. Qf6+ {[%clk 0:01:03.4]}
29... Kg8 {[%clk 0:00:07.4]} 30. axb5 {[%clk 0:01:04]} 30... Nd3 {[%clk
0:00:06.3]} 31. e6 {[%clk 0:01:03.5]} 1-0

[Event "*** SCC Grand Prix: Titled Tuesday Blitz"]
[Site "Chess.com"]
[Date "2020.08.25"]
[Round "4"]
[White "DishonorOnYourCow"]
[Black "alexrustemov"]
[Result "1-0"]
[WhiteElo "2352"]
[BlackElo "2632"]
[TimeControl "180+1"]
[EndTime "10:39:44 PDT"]
[Termination "DishonorOnYourCow won by resignation"]

1. d4 {[%clk 0:03:00.9]} 1... d5 {[%clk 0:02:59.1]} 2. c4 {[%clk 0:03:00.1]}
2... c6 {[%clk 0:02:58.5]} 3. Nf3 {[%clk 0:02:57]} 3... Nf6 {[%clk 0:02:57.9]}
4. e3 {[%clk 0:02:56.9]} 4... Bf5 {[%clk 0:02:56.8]} 5. Nc3 {[%clk 0:02:53.3]}
5... e6 {[%clk 0:02:56.4]} 6. Nh4 {[%clk 0:02:53.4]} 6... Bg6 {[%clk 0:02:55.8]}
7. Be2 {[%clk 0:02:53.4]} 7... Nbd7 {[%clk 0:02:53.9]} 8. O-O {[%clk 0:02:43.7]}
8... Bd6 {[%clk 0:02:48]} 9. Nxg6 {[%clk 0:02:41.9]} 9... hxg6 {[%clk
0:02:44.4]} 10. g3 {[%clk 0:02:42]} 10... Qe7 {[%clk 0:02:33.8]} 11. cxd5 {[%clk
0:02:22.1]} 11... exd5 {[%clk 0:02:30.3]} 12. Bf3 {[%clk 0:02:20.3]} 12... Ne4
{[%clk 0:02:19]} 13. Bg2 {[%clk 0:02:10.4]} 13... f5 {[%clk 0:02:16]} 14. Qc2
{[%clk 0:01:55.7]} 14... Qg5 {[%clk 0:02:01.1]} 15. Nxe4 {[%clk 0:01:34.6]}
15... fxe4 {[%clk 0:01:53.2]} 16. f4 {[%clk 0:01:17.3]} 16... exf3 {[%clk
0:01:47.9]} 17. Bxf3 {[%clk 0:01:13.1]} 17... Nf6 {[%clk 0:01:42.9]} 18. e4
{[%clk 0:01:01.7]} 18... Rxh2 {[%clk 0:00:23.6]} 19. Qxh2 {[%clk 0:00:59.9]}
19... Qxg3+ {[%clk 0:00:23.9]} 20. Qxg3 {[%clk 0:01:00]} 20... Bxg3 {[%clk
0:00:24.7]} 21. e5 {[%clk 0:01:00.3]} 21... Nd7 {[%clk 0:00:19.1]} 22. Kg2
{[%clk 0:01:00]} 22... Bh4 {[%clk 0:00:18.5]} 23. Rh1 {[%clk 0:00:59.3]} 23...
Be7 {[%clk 0:00:19.1]} 24. Rh8+ {[%clk 0:00:58.3]} 24... Nf8 {[%clk 0:00:20]}
25. Bf4 {[%clk 0:00:56.7]} 25... g5 {[%clk 0:00:19.7]} 26. Bg3 {[%clk
0:00:56.4]} 26... Kf7 {[%clk 0:00:17.6]} 27. Rf1 {[%clk 0:00:54.9]} 27... g6
{[%clk 0:00:14.1]} 28. Bxd5+ {[%clk 0:00:52.1]} 28... Kg7 {[%clk 0:00:14.1]} 29.
Rg8+ {[%clk 0:00:52.4]} 1-0

[Event "*** SCC Grand Prix: Titled Tuesday Blitz"]
[Site "Chess.com"]
[Date "2020.08.25"]
[Round "4"]
[White "EnergeticHay"]
[Black "eCztery"]
[Result "0-1"]
[WhiteElo "2197"]
[BlackElo "2418"]
[TimeControl "180+1"]
[EndTime "10:39:46 PDT"]
[Termination "eCztery won by resignation"]

1. e4 {[%clk 0:03:00.9]} 1... c5 {[%clk 0:02:49.1]} 2. b4 {[%clk 0:02:58.9]}
2... cxb4 {[%clk 0:02:46.4]} 3. a3 {[%clk 0:02:58.4]} 3... bxa3 {[%clk
0:02:44.8]} 4. Bxa3 {[%clk 0:02:56.3]} 4... g6 {[%clk 0:02:40.3]} 5. Bb2 {[%clk
0:02:53.7]} 5... Nf6 {[%clk 0:02:40.8]} 6. e5 {[%clk 0:02:53.4]} 6... Nd5 {[%clk
0:02:41.2]} 7. e6 {[%clk 0:02:52.6]} 7... Nf6 {[%clk 0:02:39.1]} 8. exf7+ {[%clk
0:02:49.3]} 8... Kxf7 {[%clk 0:02:40]} 9. Bc4+ {[%clk 0:02:48.6]} 9... d5 {[%clk
0:02:36]} 10. Bb3 {[%clk 0:02:47]} 10... Bg7 {[%clk 0:02:35.6]} 11. Nf3 {[%clk
0:02:46.2]} 11... Nc6 {[%clk 0:02:32.5]} 12. O-O {[%clk 0:02:44.7]} 12... Rf8
{[%clk 0:02:28]} 13. c4 {[%clk 0:02:27.5]} 13... e6 {[%clk 0:01:56]} 14. cxd5
{[%clk 0:02:26.5]} 14... exd5 {[%clk 0:01:56.9]} 15. Ne5+ {[%clk 0:02:16]} 15...
Nxe5 {[%clk 0:01:56.1]} 16. Bxe5 {[%clk 0:02:16.9]} 16... Be6 {[%clk 0:01:54.7]}
17. Nc3 {[%clk 0:02:13.2]} 17... Kg8 {[%clk 0:01:48.1]} 18. Nb5 {[%clk
0:01:32.6]} 18... Ne4 {[%clk 0:01:22.7]} 19. Bxg7 {[%clk 0:01:14.6]} 19... Kxg7
{[%clk 0:01:23.6]} 20. d3 {[%clk 0:01:14.6]} 20... Nd6 {[%clk 0:01:17]} 21. Nd4
{[%clk 0:01:11.9]} 21... Qf6 {[%clk 0:01:06.3]} 22. Nxe6+ {[%clk 0:01:10.1]}
22... Qxe6 {[%clk 0:01:07.2]} 23. Ra5 {[%clk 0:01:07.4]} 23... b5 {[%clk
0:00:59.1]} 24. Qa1+ {[%clk 0:01:03]} 24... Rf6 {[%clk 0:00:36.2]} 25. Rxa7+
{[%clk 0:01:01.7]} 25... Rxa7 {[%clk 0:00:37.1]} 26. Qxa7+ {[%clk 0:01:01.7]}
26... Nf7 {[%clk 0:00:37.4]} 27. Qc5 {[%clk 0:00:59]} 27... Ne5 {[%clk
0:00:26.7]} 28. Bxd5 {[%clk 0:00:56.2]} 28... Qf5 {[%clk 0:00:24.4]} 29. Be4
{[%clk 0:00:53]} 29... Nf3+ {[%clk 0:00:23.6]} 30. Bxf3 {[%clk 0:00:39.2]} 30...
Qxc5 {[%clk 0:00:24.5]} 0-1

[Event "*** SCC Grand Prix: Titled Tuesday Blitz"]
[Site "Chess.com"]
[Date "2020.08.25"]
[Round "4"]
[White "cassoulet"]
[Black "Chess_Boxer123"]
[Result "1/2-1/2"]
[WhiteElo "2705"]
[BlackElo "2533"]
[TimeControl "180+1"]
[EndTime "10:39:47 PDT"]
[Termination "Game drawn by repetition"]

1. d4 {[%clk 0:03:00.4]} 1... d5 {[%clk 0:02:59.9]} 2. c4 {[%clk 0:02:59.9]}
2... c6 {[%clk 0:03:00.1]} 3. cxd5 {[%clk 0:02:59.4]} 3... cxd5 {[%clk
0:02:59.9]} 4. Bf4 {[%clk 0:03:00]} 4... Nc6 {[%clk 0:02:59.3]} 5. e3 {[%clk
0:03:00.5]} 5... a6 {[%clk 0:02:58.5]} 6. Nc3 {[%clk 0:03:00.8]} 6... Nf6 {[%clk
0:02:58.8]} 7. Bd3 {[%clk 0:03:00]} 7... Bg4 {[%clk 0:02:57]} 8. Nge2 {[%clk
0:02:59]} 8... e6 {[%clk 0:02:57.2]} 9. h3 {[%clk 0:02:58.9]} 9... Bh5 {[%clk
0:02:57.1]} 10. O-O {[%clk 0:02:58.8]} 10... Bd6 {[%clk 0:02:57]} 11. Qd2 {[%clk
0:02:55.5]} 11... O-O {[%clk 0:02:55.3]} 12. Rac1 {[%clk 0:02:53.6]} 12... Rc8
{[%clk 0:02:54.1]} 13. Bb1 {[%clk 0:02:53.2]} 13... Bg6 {[%clk 0:02:53.7]} 14.
Na4 {[%clk 0:02:47.9]} 14... Bxb1 {[%clk 0:02:52.2]} 15. Rxb1 {[%clk 0:02:48.8]}
15... Bxf4 {[%clk 0:02:46]} 16. Nxf4 {[%clk 0:02:48.6]} 16... Nd7 {[%clk
0:02:45.4]} 17. Nd3 {[%clk 0:02:46.9]} 17... Qa5 {[%clk 0:02:39.2]} 18. Qxa5
{[%clk 0:02:42.6]} 18... Nxa5 {[%clk 0:02:40.1]} 19. Rfc1 {[%clk 0:02:41.7]}
19... b6 {[%clk 0:02:35]} 20. b3 {[%clk 0:02:35.5]} 20... Nc6 {[%clk 0:02:26.4]}
21. Rc3 {[%clk 0:02:28.7]} 21... Na7 {[%clk 0:02:25]} 22. Rbc1 {[%clk
0:02:24.7]} 22... Rxc3 {[%clk 0:02:24.8]} 23. Rxc3 {[%clk 0:02:25.6]} 23... Rc8
{[%clk 0:02:25.2]} 24. Rxc8+ {[%clk 0:02:16.3]} 24... Nxc8 {[%clk 0:02:26.1]}
25. Nb4 {[%clk 0:02:16.8]} 25... a5 {[%clk 0:02:23.9]} 26. Nc6 {[%clk
0:02:12.9]} 26... Kf8 {[%clk 0:02:22.3]} 27. Kf1 {[%clk 0:02:12.3]} 27... Ne7
{[%clk 0:02:03.8]} 28. Na7 {[%clk 0:01:52]} 28... Ke8 {[%clk 0:02:01.7]} 29. Ke2
{[%clk 0:01:50.4]} 29... Kd8 {[%clk 0:01:54.4]} 30. Nb5 {[%clk 0:01:49.8]} 30...
Nc8 {[%clk 0:01:47.7]} 31. g4 {[%clk 0:01:46.8]} 31... g5 {[%clk 0:01:41.2]} 32.
Kd3 {[%clk 0:01:45.5]} 32... Nb8 {[%clk 0:01:30.2]} 33. f3 {[%clk 0:01:40.6]}
33... Nc6 {[%clk 0:01:29.2]} 34. a3 {[%clk 0:01:39.9]} 34... Kd7 {[%clk
0:01:28.6]} 35. e4 {[%clk 0:01:36.2]} 35... N6e7 {[%clk 0:01:27.1]} 36. Nbc3
{[%clk 0:01:32.1]} 36... Kc6 {[%clk 0:01:26]} 37. b4 {[%clk 0:01:25.3]} 37...
axb4 {[%clk 0:01:21.3]} 38. axb4 {[%clk 0:01:26.2]} 38... b5 {[%clk 0:01:18.8]}
39. Nc5 {[%clk 0:01:26.2]} 39... Nd6 {[%clk 0:01:15.6]} 40. exd5+ {[%clk
0:01:13.1]} 40... Nxd5 {[%clk 0:01:14.9]} 41. Nxd5 {[%clk 0:01:05.9]} 41... Kxd5
{[%clk 0:01:14.5]} 42. Ne4 {[%clk 0:01:00.6]} 42... Nxe4 {[%clk 0:01:04.3]} 43.
fxe4+ {[%clk 0:01:01.5]} 43... Kd6 {[%clk 0:00:57.7]} 44. Ke3 {[%clk 0:01:02.4]}
44... e5 {[%clk 0:00:54.3]} 45. d5 {[%clk 0:00:59.8]} 45... f6 {[%clk
0:00:50.5]} 46. Kf3 {[%clk 0:00:59.4]} 46... h6 {[%clk 0:00:50.6]} 47. Ke3
{[%clk 0:00:59.5]} 47... Kd7 {[%clk 0:00:51.1]} 48. Kf3 {[%clk 0:01:00]} 48...
Kd6 {[%clk 0:00:51.6]} 49. Ke3 {[%clk 0:01:00.6]} 49... Kd7 {[%clk 0:00:52.1]}
50. Kf3 {[%clk 0:01:01.3]} 50... Kd6 {[%clk 0:00:52.3]} 1/2-1/2

[Event "*** SCC Grand Prix: Titled Tuesday Blitz"]
[Site "Chess.com"]
[Date "2020.08.25"]
[Round "4"]
[White "dforcen"]
[Black "londonkid"]
[Result "1-0"]
[WhiteElo "2627"]
[BlackElo "2450"]
[TimeControl "180+1"]
[EndTime "10:39:49 PDT"]
[Termination "dforcen won by resignation"]

1. c4 {[%clk 0:03:00.9]} 1... e5 {[%clk 0:03:00.1]} 2. Nc3 {[%clk 0:03:00.6]}
2... Nc6 {[%clk 0:03:00.5]} 3. Nf3 {[%clk 0:03:01]} 3... Nf6 {[%clk 0:02:59.5]}
4. e4 {[%clk 0:02:57.2]} 4... Bb4 {[%clk 0:02:53.4]} 5. d3 {[%clk 0:02:56.9]}
5... O-O {[%clk 0:02:52.3]} 6. a3 {[%clk 0:02:56.1]} 6... Bxc3+ {[%clk
0:02:52.2]} 7. bxc3 {[%clk 0:02:57]} 7... d6 {[%clk 0:02:52]} 8. Be2 {[%clk
0:02:57.1]} 8... Bg4 {[%clk 0:02:47]} 9. O-O {[%clk 0:02:56.8]} 9... h6 {[%clk
0:02:46.4]} 10. h3 {[%clk 0:02:56.7]} 10... Be6 {[%clk 0:02:44.3]} 11. Ne1
{[%clk 0:02:53.2]} 11... Ne7 {[%clk 0:02:40.7]} 12. f4 {[%clk 0:02:51.8]} 12...
exf4 {[%clk 0:02:40.6]} 13. Bxf4 {[%clk 0:02:52.7]} 13... Ng6 {[%clk 0:02:40.2]}
14. Be3 {[%clk 0:02:46.2]} 14... c6 {[%clk 0:02:39.8]} 15. Nf3 {[%clk
0:02:35.4]} 15... d5 {[%clk 0:02:36.5]} 16. cxd5 {[%clk 0:02:32.9]} 16... cxd5
{[%clk 0:02:35.8]} 17. e5 {[%clk 0:02:33.4]} 17... Nh5 {[%clk 0:02:31.5]} 18.
Rf2 {[%clk 0:02:02.6]} 18... Nhf4 {[%clk 0:02:20.4]} 19. Bf1 {[%clk 0:02:01.4]}
19... Nh5 {[%clk 0:01:48.2]} 20. d4 {[%clk 0:01:59.2]} 20... Ng3 {[%clk
0:01:46]} 21. Bd3 {[%clk 0:01:58.8]} 21... Ne4 {[%clk 0:01:43.8]} 22. Bxe4
{[%clk 0:01:58]} 22... dxe4 {[%clk 0:01:44.1]} 23. Nd2 {[%clk 0:01:58.6]} 23...
Rc8 {[%clk 0:01:32]} 24. Rc1 {[%clk 0:01:57.7]} 24... b5 {[%clk 0:01:25.6]} 25.
Nxe4 {[%clk 0:01:56.6]} 25... Qh4 {[%clk 0:01:22.4]} 26. Nd6 {[%clk 0:01:48.7]}
26... Rcd8 {[%clk 0:01:06.4]} 27. Qf3 {[%clk 0:01:39.6]} 27... f5 {[%clk
0:00:52.1]} 28. Rcf1 {[%clk 0:01:30.2]} 28... f4 {[%clk 0:00:51.7]} 29. Bd2
{[%clk 0:01:29.8]} 29... Qg5 {[%clk 0:00:49]} 30. Kh2 {[%clk 0:01:24.3]} 30...
Nh4 {[%clk 0:00:47.4]} 31. Qd3 {[%clk 0:01:22]} 31... Bd5 {[%clk 0:00:37.7]} 32.
g3 {[%clk 0:01:10.2]} 32... fxg3+ {[%clk 0:00:27.9]} 33. Qxg3 {[%clk 0:01:11.1]}
33... Rxf2+ {[%clk 0:00:27.7]} 34. Rxf2 {[%clk 0:01:09.1]} 34... Nf3+ {[%clk
0:00:18.7]} 35. Qxf3 {[%clk 0:00:58.3]} 35... Qxd2 {[%clk 0:00:14.5]} 36. Qxd5+
{[%clk 0:00:58]} 1-0